[Event "*** Titled Tuesday Blitz"]
[Site "Chess.com"]
[Date "2020.05.12"]
[Round "10"]
[White "vladislavkovalev"]
[Black "kuban1991"]
[Result "1-0"]
[WhiteElo "2904"]
[BlackElo "2745"]
[TimeControl "180+1"]
[EndTime "11:54:09 PDT"]
[Termination "vladislavkovalev won on time"]

1. e4 {[%clk 0:03:00.4]} 1... e6 {[%clk 0:02:59.3]} 2. d4 {[%clk 0:03:00.5]}
2... d5 {[%clk 0:02:59.8]} 3. Bd3 {[%clk 0:03:01.3]} 3... c5 {[%clk 0:02:59]} 4.
exd5 {[%clk 0:03:01.6]} 4... exd5 {[%clk 0:02:58.7]} 5. Nf3 {[%clk 0:03:02]}
5... Nc6 {[%clk 0:02:58.7]} 6. O-O {[%clk 0:03:02.1]} 6... c4 {[%clk 0:02:57.8]}
7. Re1+ {[%clk 0:03:02.2]} 7... Be7 {[%clk 0:02:58.3]} 8. Bf1 {[%clk 0:03:02.7]}
8... Nf6 {[%clk 0:02:58.4]} 9. b3 {[%clk 0:03:02.5]} 9... cxb3 {[%clk
0:02:59.3]} 10. axb3 {[%clk 0:03:03.4]} 10... O-O {[%clk 0:02:59.8]} 11. c3
{[%clk 0:02:58.6]} 11... Bg4 {[%clk 0:02:59.4]} 12. h3 {[%clk 0:02:59]} 12...
Bh5 {[%clk 0:02:57.9]} 13. Bf4 {[%clk 0:02:55.3]} 13... a5 {[%clk 0:02:53.7]}
14. Nbd2 {[%clk 0:02:55.4]} 14... Rc8 {[%clk 0:02:53.2]} 15. g4 {[%clk
0:02:52.6]} 15... Bg6 {[%clk 0:02:52.3]} 16. Bg2 {[%clk 0:02:53.2]} 16... Ne4
{[%clk 0:02:47.6]} 17. Rc1 {[%clk 0:02:46.4]} 17... Qb6 {[%clk 0:02:41.6]} 18.
h4 {[%clk 0:02:35.9]} 18... Nxd2 {[%clk 0:02:36.6]} 19. Bxd2 {[%clk 0:02:35.4]}
19... Be4 {[%clk 0:02:34.5]} 20. h5 {[%clk 0:02:04.2]} 20... Rfe8 {[%clk
0:02:27.4]} 21. Nh2 {[%clk 0:01:41.4]} 21... Bd6 {[%clk 0:02:09.4]} 22. Bxe4
{[%clk 0:01:19.3]} 22... dxe4 {[%clk 0:02:10.3]} 23. Nf1 {[%clk 0:01:14.8]}
23... Qd8 {[%clk 0:02:10]} 24. Kg2 {[%clk 0:01:10.6]} 24... a4 {[%clk
0:01:31.9]} 25. bxa4 {[%clk 0:01:04.8]} 25... Na5 {[%clk 0:01:31.4]} 26. Ne3
{[%clk 0:01:02]} 26... Qh4 {[%clk 0:01:19.1]} 27. Rh1 {[%clk 0:00:59.4]} 27...
Qf6 {[%clk 0:01:19.5]} 28. c4 {[%clk 0:00:53.6]} 28... Nc6 {[%clk 0:01:04.2]}
29. Bc3 {[%clk 0:00:50.8]} 29... Qf4 {[%clk 0:00:57.9]} 30. h6 {[%clk
0:00:46.2]} 30... g6 {[%clk 0:00:53.7]} 31. Nd5 {[%clk 0:00:44]} 31... Qg5
{[%clk 0:00:40.2]} 32. Rb1 {[%clk 0:00:44.3]} 32... e3 {[%clk 0:00:18.8]} 33.
Qf3 {[%clk 0:00:37.6]} 33... f5 {[%clk 0:00:15.6]} 34. Rxb7 {[%clk 0:00:32.9]}
34... Rb8 {[%clk 0:00:10.3]} 35. Rg7+ {[%clk 0:00:22.6]} 35... Kh8 {[%clk
0:00:09.8]} 36. Qxf5 {[%clk 0:00:13.3]} 36... gxf5 {[%clk 0:00:05.2]} 37. Rxg5
{[%clk 0:00:13.1]} 37... f4 {[%clk 0:00:03]} 38. fxe3 {[%clk 0:00:08.5]} 38...
fxe3 {[%clk 0:00:03.9]} 39. Re1 {[%clk 0:00:09.1]} 39... Rb3 {[%clk 0:00:03]}
40. Rg7 {[%clk 0:00:08.3]} 40... e2 {[%clk 0:00:02.9]} 41. Nf6 {[%clk
0:00:07.4]} 1-0

[Event "*** Titled Tuesday Blitz"]
[Site "Chess.com"]
[Date "2020.05.12"]
[Round "10"]
[White "allvim"]
[Black "Andro2"]
[Result "0-1"]
[WhiteElo "2270"]
[BlackElo "2427"]
[TimeControl "180+1"]
[EndTime "11:54:10 PDT"]
[Termination "Andro2 won by resignation"]

1. e4 {[%clk 0:03:00.9]} 1... a6 {[%clk 0:02:59.7]} 2. a4 {[%clk 0:02:56.9]}
2... e5 {[%clk 0:02:58.7]} 3. Nf3 {[%clk 0:02:56.7]} 3... Nc6 {[%clk 0:02:58.5]}
4. Bc4 {[%clk 0:02:56.9]} 4... Nf6 {[%clk 0:02:56.9]} 5. O-O {[%clk 0:02:57.2]}
5... Bc5 {[%clk 0:02:46.7]} 6. d4 {[%clk 0:02:57]} 6... Bxd4 {[%clk 0:02:44.6]}
7. Nxd4 {[%clk 0:02:57.2]} 7... Nxd4 {[%clk 0:02:44.6]} 8. Bg5 {[%clk
0:02:57.6]} 8... d6 {[%clk 0:02:37.9]} 9. f4 {[%clk 0:02:55.6]} 9... Qe7 {[%clk
0:02:36.4]} 10. Na3 {[%clk 0:02:49.2]} 10... Bd7 {[%clk 0:02:19.1]} 11. fxe5
{[%clk 0:02:24.8]} 11... dxe5 {[%clk 0:02:18]} 12. c3 {[%clk 0:02:25.4]} 12...
Ne6 {[%clk 0:02:16.4]} 13. Bxe6 {[%clk 0:02:23.8]} 13... Qxe6 {[%clk 0:01:54.3]}
14. Bxf6 {[%clk 0:02:23.2]} 14... gxf6 {[%clk 0:01:53.1]} 15. Qf3 {[%clk
0:02:23.9]} 15... O-O-O {[%clk 0:01:36]} 16. Nc2 {[%clk 0:02:19.5]} 16... Rhg8
{[%clk 0:01:29.2]} 17. Ne3 {[%clk 0:02:19.4]} 17... Bc6 {[%clk 0:01:28.3]} 18.
Rae1 {[%clk 0:02:05]} 18... Rg6 {[%clk 0:01:23.9]} 19. Nf5 {[%clk 0:01:59.7]}
19... Bxa4 {[%clk 0:01:12.4]} 20. Qh3 {[%clk 0:01:50.4]} 20... Kb8 {[%clk
0:01:04.5]} 21. Qxh7 {[%clk 0:01:46.1]} 21... Rd2 {[%clk 0:01:02.7]} 22. Rf2
{[%clk 0:01:36.5]} 22... Rxf2 {[%clk 0:00:53.8]} 23. Kxf2 {[%clk 0:01:37.4]}
23... Qb6+ {[%clk 0:00:53.5]} 24. Ne3 {[%clk 0:01:01.3]} 24... Rg4 {[%clk
0:00:29.7]} 25. g3 {[%clk 0:00:53.5]} 25... Qxb2+ {[%clk 0:00:24.6]} 26. Re2
{[%clk 0:00:50.9]} 26... Qxc3 {[%clk 0:00:24.6]} 27. Qxf7 {[%clk 0:00:47]} 27...
Qd4 {[%clk 0:00:21.9]} 28. Qxf6 {[%clk 0:00:39.1]} 28... Rxe4 {[%clk 0:00:21.1]}
29. Qf8+ {[%clk 0:00:19.6]} 29... Ka7 {[%clk 0:00:20.2]} 30. Qa3 {[%clk
0:00:20.5]} 30... Bb5 {[%clk 0:00:19]} 31. Rc2 {[%clk 0:00:18.9]} 31... b6
{[%clk 0:00:14.1]} 32. Rxc7+ {[%clk 0:00:18.2]} 32... Kb8 {[%clk 0:00:14.2]} 33.
Rc2 {[%clk 0:00:17.8]} 33... Qd8 {[%clk 0:00:11.1]} 34. Qc3 {[%clk 0:00:10.6]}
34... Rd4 {[%clk 0:00:10.4]} 35. Nf5 {[%clk 0:00:07.4]} 35... Rd3 {[%clk
0:00:09.1]} 36. Qxe5+ {[%clk 0:00:05.8]} 36... Ka8 {[%clk 0:00:07.3]} 37. Qe4+
{[%clk 0:00:03.8]} 37... Kb8 {[%clk 0:00:07.4]} 38. Qf4+ {[%clk 0:00:03.3]}
38... Ka8 {[%clk 0:00:06.8]} 39. Nd6 {[%clk 0:00:01.3]} 39... Rxd6 {[%clk
0:00:05.4]} 40. Qxd6 {[%clk 0:00:01.8]} 40... Qxd6 {[%clk 0:00:05.2]} 41. Re2
{[%clk 0:00:02.7]} 41... Qd4+ {[%clk 0:00:04.9]} 42. Re3 {[%clk 0:00:02.5]}
42... Qd2+ {[%clk 0:00:04.5]} 0-1

[Event "*** Titled Tuesday Blitz"]
[Site "Chess.com"]
[Date "2020.05.12"]
[Round "10"]
[White "C_K_G"]
[Black "DaggiGretarsson"]
[Result "0-1"]
[WhiteElo "2046"]
[BlackElo "2546"]
[TimeControl "180+1"]
[EndTime "11:54:11 PDT"]
[Termination "DaggiGretarsson won on time"]

1. e4 {[%clk 0:03:00.9]} 1... g6 {[%clk 0:02:59.5]} 2. Nf3 {[%clk 0:02:59.2]}
2... Bg7 {[%clk 0:02:59.6]} 3. d4 {[%clk 0:03:00.1]} 3... d6 {[%clk 0:02:59.2]}
4. c4 {[%clk 0:02:59.2]} 4... Bg4 {[%clk 0:02:55.4]} 5. Be2 {[%clk 0:02:56.9]}
5... Nc6 {[%clk 0:02:54]} 6. Be3 {[%clk 0:02:50.4]} 6... Bxf3 {[%clk 0:02:40.6]}
7. Bxf3 {[%clk 0:02:48]} 7... e5 {[%clk 0:02:40.4]} 8. dxe5 {[%clk 0:02:44.5]}
8... dxe5 {[%clk 0:02:39.7]} 9. Qxd8+ {[%clk 0:02:42.2]} 9... Rxd8 {[%clk
0:02:38.9]} 10. Nc3 {[%clk 0:02:39.6]} 10... Nd4 {[%clk 0:02:37.4]} 11. Bd1
{[%clk 0:02:27.7]} 11... c6 {[%clk 0:02:36.7]} 12. O-O {[%clk 0:02:26.8]} 12...
Bh6 {[%clk 0:02:34.8]} 13. f4 {[%clk 0:02:21.5]} 13... Bxf4 {[%clk 0:02:29.6]}
14. Bxf4 {[%clk 0:02:22.4]} 14... exf4 {[%clk 0:02:29.4]} 15. Rxf4 {[%clk
0:02:22]} 15... f6 {[%clk 0:02:08.9]} 16. e5 {[%clk 0:02:00.5]} 16... f5 {[%clk
0:02:07.7]} 17. g4 {[%clk 0:01:45.1]} 17... Ne6 {[%clk 0:02:05.7]} 18. Rf2
{[%clk 0:01:38.1]} 18... Ne7 {[%clk 0:01:51.1]} 19. gxf5 {[%clk 0:01:34.7]}
19... gxf5 {[%clk 0:01:50.3]} 20. Bh5+ {[%clk 0:01:32.7]} 20... Kd7 {[%clk
0:01:49.3]} 21. Bf7 {[%clk 0:01:20.9]} 21... Ng5 {[%clk 0:01:42.8]} 22. Rd2+
{[%clk 0:01:12.1]} 22... Kc7 {[%clk 0:01:41.7]} 23. Rxd8 {[%clk 0:01:10]} 23...
Rxd8 {[%clk 0:01:40.7]} 24. e6 {[%clk 0:01:05.4]} 24... Rd2 {[%clk 0:01:38.5]}
25. Rd1 {[%clk 0:00:47.3]} 25... Nf3+ {[%clk 0:01:34.6]} 26. Kf1 {[%clk
0:00:45.8]} 26... Nxh2+ {[%clk 0:01:34.5]} 27. Kg1 {[%clk 0:00:44.8]} 27... Nf3+
{[%clk 0:01:34]} 28. Kf1 {[%clk 0:00:44.4]} 28... Rxd1+ {[%clk 0:01:32.4]} 29.
Nxd1 {[%clk 0:00:43.6]} 29... Nd2+ {[%clk 0:01:32.4]} 30. Kf2 {[%clk 0:00:43.1]}
30... Nxc4 {[%clk 0:01:32.4]} 31. Kf3 {[%clk 0:00:42.2]} 31... Kd6 {[%clk
0:01:18.3]} 32. Kf4 {[%clk 0:00:39.4]} 32... h6 {[%clk 0:01:18]} 33. b3 {[%clk
0:00:33.4]} 33... Nb6 {[%clk 0:01:17.4]} 34. Nf2 {[%clk 0:00:19.7]} 34... Nbd5+
{[%clk 0:01:16.2]} 35. Kg3 {[%clk 0:00:19.4]} 35... Ke5 {[%clk 0:00:47.5]} 36.
Nd3+ {[%clk 0:00:17.5]} 36... Kd4 {[%clk 0:00:47.2]} 37. Nf2 {[%clk 0:00:14.6]}
37... a5 {[%clk 0:00:39.5]} 38. Kh4 {[%clk 0:00:12]} 38... Nf6 {[%clk
0:00:33.3]} 39. Kg3 {[%clk 0:00:08.2]} 39... Nfd5 {[%clk 0:00:24.5]} 40. Kh4
{[%clk 0:00:05.5]} 40... Ke3 {[%clk 0:00:24.5]} 41. Nh3 {[%clk 0:00:02.6]} 41...
Nf6 {[%clk 0:00:21.4]} 42. Kg3 {[%clk 0:00:01.3]} 42... Ne4+ {[%clk 0:00:20]}
0-1

[Event "*** Titled Tuesday Blitz"]
[Site "Chess.com"]
[Date "2020.05.12"]
[Round "10"]
[White "Fy_Rakotomaharo"]
[Black "Khamrakulov_Djurabek"]
[Result "0-1"]
[WhiteElo "2652"]
[BlackElo "2810"]
[TimeControl "180+1"]
[EndTime "11:54:13 PDT"]
[Termination "Khamrakulov_Djurabek won by resignation"]

1. e4 {[%clk 0:02:29.9]} 1... c6 {[%clk 0:02:59.8]} 2. Nf3 {[%clk 0:02:29.2]}
2... d5 {[%clk 0:03:00.1]} 3. d3 {[%clk 0:02:29.7]} 3... g6 {[%clk 0:02:59]} 4.
e5 {[%clk 0:02:29.5]} 4... c5 {[%clk 0:02:57.3]} 5. d4 {[%clk 0:02:16.2]} 5...
Nc6 {[%clk 0:02:56.6]} 6. dxc5 {[%clk 0:02:16.1]} 6... Qa5+ {[%clk 0:02:52]} 7.
Nc3 {[%clk 0:01:36.3]} 7... e6 {[%clk 0:02:47.8]} 8. Bb5 {[%clk 0:01:20.2]} 8...
Bxc5 {[%clk 0:02:47.4]} 9. O-O {[%clk 0:01:19]} 9... Bd7 {[%clk 0:02:47.4]} 10.
a3 {[%clk 0:01:07.8]} 10... Qc7 {[%clk 0:02:29.9]} 11. Bf4 {[%clk 0:01:02.4]}
11... h6 {[%clk 0:02:19.3]} 12. Qd2 {[%clk 0:01:00.2]} 12... O-O-O {[%clk
0:02:15.5]} 13. b4 {[%clk 0:00:49]} 13... Bf8 {[%clk 0:02:01.5]} 14. Nxd5 {[%clk
0:00:41.8]} 14... exd5 {[%clk 0:01:48.8]} 15. e6 {[%clk 0:00:41.8]} 15... Bd6
{[%clk 0:01:49.1]} 16. exd7+ {[%clk 0:00:39.2]} 16... Rxd7 {[%clk 0:01:49.7]}
17. Bxd6 {[%clk 0:00:33]} 17... Rxd6 {[%clk 0:01:50.1]} 18. Bxc6 {[%clk
0:00:29.1]} 18... Rxc6 {[%clk 0:01:45.1]} 19. Qd4 {[%clk 0:00:27.7]} 19... Nf6
{[%clk 0:01:37]} 20. Qxa7 {[%clk 0:00:27.3]} 20... Rxc2 {[%clk 0:01:35.5]} 21.
Qd4 {[%clk 0:00:27.1]} 21... Qc3 {[%clk 0:01:31.6]} 22. Qa7 {[%clk 0:00:19.7]}
22... Ne4 {[%clk 0:01:25.9]} 23. Rad1 {[%clk 0:00:14.5]} 23... Rd8 {[%clk
0:01:23.2]} 24. Nd4 {[%clk 0:00:13.3]} 24... Nd2 {[%clk 0:01:02.1]} 25. Qa8+
{[%clk 0:00:11.6]} 25... Kc7 {[%clk 0:01:01.4]} 26. Nb5+ {[%clk 0:00:11.6]}
26... Kc6 {[%clk 0:00:49]} 27. Qxd8 {[%clk 0:00:09.4]} 27... Kxb5 {[%clk
0:00:49.3]} 28. Qxd5+ {[%clk 0:00:09.3]} 28... Ka4 {[%clk 0:00:49.7]} 29. Qa5+
{[%clk 0:00:09.1]} 29... Kb3 {[%clk 0:00:49.7]} 30. Rfe1 {[%clk 0:00:09.6]}
30... Qd4 {[%clk 0:00:36.4]} 31. Re3+ {[%clk 0:00:08.9]} 31... Ka2 {[%clk
0:00:34.9]} 32. Qe5 {[%clk 0:00:08.3]} 32... Nf3+ {[%clk 0:00:33.4]} 33. gxf3
{[%clk 0:00:07.2]} 33... Qxd1+ {[%clk 0:00:33.7]} 34. Kg2 {[%clk 0:00:08.1]}
34... Qd2 {[%clk 0:00:29.9]} 35. Kh3 {[%clk 0:00:07.4]} 35... Qxf2 {[%clk
0:00:29.8]} 36. Qd5+ {[%clk 0:00:07.5]} 36... Ka1 {[%clk 0:00:26.6]} 37. Qd1+
{[%clk 0:00:07]} 37... Kb2 {[%clk 0:00:26.1]} 38. Qd4+ {[%clk 0:00:07]} 38...
Ka2 {[%clk 0:00:26]} 39. Qd5+ {[%clk 0:00:06.5]} 39... Kb1 {[%clk 0:00:20.8]}
40. Qd1+ {[%clk 0:00:05.1]} 40... Rc1 {[%clk 0:00:18.2]} 41. Rb3+ {[%clk
0:00:04.9]} 41... Ka2 {[%clk 0:00:18.3]} 42. Qd3 {[%clk 0:00:04.7]} 42... Rc2
{[%clk 0:00:14.1]} 43. Kg4 {[%clk 0:00:04.1]} 43... Qg2+ {[%clk 0:00:14.1]} 44.
Kf4 {[%clk 0:00:05]} 44... Qg5+ {[%clk 0:00:13.3]} 45. Ke4 {[%clk 0:00:05.4]}
45... Qf5+ {[%clk 0:00:13.5]} 46. Kd4 {[%clk 0:00:05.6]} 46... Qf6+ {[%clk
0:00:13.8]} 47. Ke4 {[%clk 0:00:05.2]} 47... Qe6+ {[%clk 0:00:14.1]} 48. Kd4
{[%clk 0:00:03.8]} 48... Qd6+ {[%clk 0:00:13.8]} 49. Ke4 {[%clk 0:00:03.9]}
49... f5+ {[%clk 0:00:14.5]} 50. Ke3 {[%clk 0:00:03.7]} 50... Qe5+ {[%clk
0:00:14.1]} 0-1

[Event "*** Titled Tuesday Blitz"]
[Site "Chess.com"]
[Date "2020.05.12"]
[Round "10"]
[White "peixe64"]
[Black "dopolian"]
[Result "1-0"]
[WhiteElo "2195"]
[BlackElo "2304"]
[TimeControl "180+1"]
[EndTime "11:54:14 PDT"]
[Termination "peixe64 won by resignation"]

1. d4 {[%clk 0:03:00.9]} 1... Nf6 {[%clk 0:03:00.1]} 2. c4 {[%clk 0:03:01.3]}
2... c5 {[%clk 0:02:58.3]} 3. dxc5 {[%clk 0:02:57.6]} 3... e6 {[%clk 0:02:57.6]}
4. Nc3 {[%clk 0:02:52]} 4... Bxc5 {[%clk 0:02:55.8]} 5. e4 {[%clk 0:02:52.3]}
5... Nc6 {[%clk 0:02:47.3]} 6. Nf3 {[%clk 0:02:51.4]} 6... Ng4 {[%clk
0:02:40.1]} 7. Bg5 {[%clk 0:02:39.5]} 7... f6 {[%clk 0:02:33.6]} 8. Bh4 {[%clk
0:02:30.4]} 8... Qb6 {[%clk 0:02:25]} 9. Qd2 {[%clk 0:02:22.7]} 9... Nce5 {[%clk
0:01:45.2]} 10. Nxe5 {[%clk 0:02:12.7]} 10... fxe5 {[%clk 0:01:35.1]} 11. h3
{[%clk 0:02:00.1]} 11... Nf6 {[%clk 0:01:29.9]} 12. Be2 {[%clk 0:01:40.2]} 12...
O-O {[%clk 0:01:27.1]} 13. Bf3 {[%clk 0:01:40.1]} 13... Bd4 {[%clk 0:01:16.6]}
14. O-O {[%clk 0:01:36.3]} 14... d6 {[%clk 0:01:14]} 15. Rab1 {[%clk 0:01:27.6]}
15... Bd7 {[%clk 0:01:11]} 16. Ne2 {[%clk 0:01:20.3]} 16... Bc6 {[%clk
0:01:01.3]} 17. Nxd4 {[%clk 0:01:19.6]} 17... Qxd4 {[%clk 0:00:56.5]} 18. Rbd1
{[%clk 0:00:59.9]} 18... Qxd2 {[%clk 0:00:51.6]} 19. Rxd2 {[%clk 0:00:59.1]}
19... Bxe4 {[%clk 0:00:20.3]} 20. Bxf6 {[%clk 0:00:52]} 20... Bxf3 {[%clk
0:00:20.4]} 21. Be7 {[%clk 0:00:47.8]} 21... Rf7 {[%clk 0:00:11.5]} 22. Bxd6
{[%clk 0:00:46.8]} 22... Bc6 {[%clk 0:00:06.1]} 23. Bxe5 {[%clk 0:00:45.9]}
23... Raf8 {[%clk 0:00:05.9]} 24. f4 {[%clk 0:00:33.4]} 24... Re8 {[%clk
0:00:06.1]} 25. Rfd1 {[%clk 0:00:30.9]} 25... Rf5 {[%clk 0:00:05.8]} 26. b4
{[%clk 0:00:28.3]} 26... Rff8 {[%clk 0:00:05.9]} 27. b5 {[%clk 0:00:27]} 27...
Be4 {[%clk 0:00:05.8]} 28. Rd4 {[%clk 0:00:26.8]} 28... Bf5 {[%clk 0:00:04.7]}
29. Rd7 {[%clk 0:00:27]} 29... Rf7 {[%clk 0:00:04.9]} 30. Kf2 {[%clk 0:00:20.6]}
30... Ree7 {[%clk 0:00:03.5]} 31. Rd8+ {[%clk 0:00:20.3]} 31... Rf8 {[%clk
0:00:03.7]} 32. Rxf8+ {[%clk 0:00:19.5]} 32... Kxf8 {[%clk 0:00:04.4]} 33. Bd6
{[%clk 0:00:20.4]} 33... Ke8 {[%clk 0:00:05.1]} 34. Bxe7 {[%clk 0:00:20.8]}
34... Kxe7 {[%clk 0:00:06]} 35. g4 {[%clk 0:00:21.3]} 35... Be4 {[%clk
0:00:06.3]} 36. Ke3 {[%clk 0:00:21.2]} 36... Bc2 {[%clk 0:00:06.1]} 37. Rd2
{[%clk 0:00:21.3]} 37... Bg6 {[%clk 0:00:06.2]} 38. Kd4 {[%clk 0:00:20.7]} 38...
Bb1 {[%clk 0:00:06.1]} 39. Ke5 {[%clk 0:00:20.5]} 39... h6 {[%clk 0:00:05.4]}
40. Rd6 {[%clk 0:00:20.9]} 40... Bxa2 {[%clk 0:00:04.1]} 41. Rxe6+ {[%clk
0:00:21.1]} 41... Kd7 {[%clk 0:00:04.6]} 42. Rd6+ {[%clk 0:00:21.3]} 42... Ke7
{[%clk 0:00:04.7]} 43. Rd4 {[%clk 0:00:20.1]} 43... Bb1 {[%clk 0:00:04.2]} 44.
h4 {[%clk 0:00:20.2]} 44... Kf7 {[%clk 0:00:04.6]} 45. f5 {[%clk 0:00:20.7]}
45... Ke7 {[%clk 0:00:04.9]} 46. g5 {[%clk 0:00:21.2]} 46... a6 {[%clk
0:00:04.9]} 47. f6+ {[%clk 0:00:21.6]} 47... gxf6+ {[%clk 0:00:05]} 48. gxf6+
{[%clk 0:00:22.5]} 48... Kf7 {[%clk 0:00:05.5]} 49. Rd7+ {[%clk 0:00:23.1]}
49... Kg6 {[%clk 0:00:06.2]} 50. Rg7+ {[%clk 0:00:23.1]} 50... Kh5 {[%clk
0:00:05.3]} 51. f7 {[%clk 0:00:23.7]} 51... Bg6 {[%clk 0:00:04.8]} 52. f8=Q
{[%clk 0:00:24]} 52... axb5 {[%clk 0:00:05.7]} 53. Qf3+ {[%clk 0:00:24.1]} 53...
Kxh4 {[%clk 0:00:06.2]} 54. Rxg6 {[%clk 0:00:24.8]} 1-0

[Event "*** Titled Tuesday Blitz"]
[Site "Chess.com"]
[Date "2020.05.12"]
[Round "10"]
[White "venus02"]
[Black "kismet6"]
[Result "1-0"]
[WhiteElo "2286"]
[BlackElo "1951"]
[TimeControl "180+1"]
[EndTime "11:54:16 PDT"]
[Termination "venus02 won on time"]

1. e4 {[%clk 0:03:00.9]} 1... d5 {[%clk 0:02:55.9]} 2. exd5 {[%clk 0:03:00.1]}
2... Nf6 {[%clk 0:02:55.4]} 3. Nf3 {[%clk 0:02:59.4]} 3... Nxd5 {[%clk
0:02:52.5]} 4. d4 {[%clk 0:02:59.6]} 4... Bf5 {[%clk 0:02:51.8]} 5. Be2 {[%clk
0:02:59.1]} 5... e6 {[%clk 0:02:51.4]} 6. O-O {[%clk 0:02:58.9]} 6... Be7 {[%clk
0:02:51.3]} 7. c4 {[%clk 0:02:58.1]} 7... Nb6 {[%clk 0:02:51.1]} 8. Nc3 {[%clk
0:02:52.8]} 8... O-O {[%clk 0:02:49.7]} 9. b3 {[%clk 0:02:48.3]} 9... Nc6 {[%clk
0:02:48.8]} 10. Bb2 {[%clk 0:02:48.2]} 10... Bg4 {[%clk 0:02:46.3]} 11. d5
{[%clk 0:02:46.4]} 11... exd5 {[%clk 0:02:39.4]} 12. Nxd5 {[%clk 0:02:45.9]}
12... Nxd5 {[%clk 0:02:35.7]} 13. cxd5 {[%clk 0:02:46.2]} 13... Nb4 {[%clk
0:02:35]} 14. Bxg7 {[%clk 0:02:45.7]} 14... Bxf3 {[%clk 0:02:27.7]} 15. Bxf8
{[%clk 0:02:08.4]} 15... Bxe2 {[%clk 0:02:26.2]} 16. Qxe2 {[%clk 0:02:08.7]}
16... Qxf8 {[%clk 0:02:12.1]} 17. Qc4 {[%clk 0:02:04.8]} 17... Bd6 {[%clk
0:02:10]} 18. a3 {[%clk 0:02:03.1]} 18... Qh6 {[%clk 0:02:07.7]} 19. g3 {[%clk
0:02:01.7]} 19... Na6 {[%clk 0:01:55.6]} 20. b4 {[%clk 0:02:01.8]} 20... Re8
{[%clk 0:01:54.6]} 21. Rfe1 {[%clk 0:02:01.3]} 21... Rxe1+ {[%clk 0:01:51.1]}
22. Rxe1 {[%clk 0:02:01.2]} 22... Qg5 {[%clk 0:01:39.6]} 23. Re8+ {[%clk
0:01:57.8]} 23... Kg7 {[%clk 0:01:38.9]} 24. Qd4+ {[%clk 0:01:57.7]} 24... f6
{[%clk 0:01:31.9]} 25. Re1 {[%clk 0:01:43]} 25... b6 {[%clk 0:01:07.1]} 26. Qd3
{[%clk 0:01:33.9]} 26... Nb8 {[%clk 0:01:03.6]} 27. f4 {[%clk 0:01:27.3]} 27...
Qg6 {[%clk 0:01:00.4]} 28. Qb5 {[%clk 0:01:09.4]} 28... Qf5 {[%clk 0:00:50]} 29.
Qc4 {[%clk 0:00:54.2]} 29... a5 {[%clk 0:00:47.1]} 30. Kg2 {[%clk 0:00:51.3]}
30... axb4 {[%clk 0:00:44.9]} 31. axb4 {[%clk 0:00:51.5]} 31... Nd7 {[%clk
0:00:19.2]} 32. Re6 {[%clk 0:00:48.8]} 32... Nf8 {[%clk 0:00:17.5]} 33. Re2
{[%clk 0:00:48.1]} 33... Ng6 {[%clk 0:00:17.1]} 34. Qe4 {[%clk 0:00:42.2]} 34...
Qxe4+ {[%clk 0:00:15]} 35. Rxe4 {[%clk 0:00:42.2]} 35... Ne7 {[%clk 0:00:14.6]}
36. Rd4 {[%clk 0:00:41.2]} 36... Nf5 {[%clk 0:00:13.8]} 37. Re4 {[%clk
0:00:41.3]} 37... Ne7 {[%clk 0:00:12.2]} 38. Rd4 {[%clk 0:00:41.1]} 38... Nf5
{[%clk 0:00:11.9]} 39. Rd3 {[%clk 0:00:38.3]} 39... Kf7 {[%clk 0:00:11]} 40. b5
{[%clk 0:00:37.2]} 40... Bc5 {[%clk 0:00:08.9]} 41. Kf3 {[%clk 0:00:37.3]} 41...
Nd4+ {[%clk 0:00:06]} 42. Ke4 {[%clk 0:00:36.7]} 42... Nxb5 {[%clk 0:00:05.8]}
43. g4 {[%clk 0:00:34.3]} 43... Nd6+ {[%clk 0:00:05.8]} 44. Kf3 {[%clk
0:00:34.6]} 44... b5 {[%clk 0:00:04.9]} 45. h4 {[%clk 0:00:32.1]} 45... b4
{[%clk 0:00:04.8]} 46. f5 {[%clk 0:00:31.9]} 46... Bb6 {[%clk 0:00:01.4]} 47.
Kf4 {[%clk 0:00:29.9]} 47... Bc5 {[%clk 0:00:01.2]} 48. g5 {[%clk 0:00:30]} 1-0